Cogmind - Beta 13 @@@ ROGUE MODE // 2024.07.01 @ 11:39:20 Player: Heclapar Result: Destroyed by S-10 Pest with Light Assault Rifle Performance ------------- Evolutions (0) 0 Regions Visited (4) 800 Robots Destroyed (27) 135 Value Destroyed (596) 596 Prototype IDs (23) 460 Alien Tech Used (0) 0 Bonus (300) 300 TOTAL SCORE: 2291 Bonus ------- Aligned with FarCom 300 Cogmind --------- Core Integrity 0/250 Matter 237/300 Energy 250/250 System Corruption 2% Temperature Cool (0) Movement Walking (120) Location -9/Mines Parts ------- > --- POWER (1) -------- Ion Engine > --- PROPULSION (2) --- Aluminum Leg Improved Aluminum Leg > --- UTILITY (2) ------ Small Storage Unit Improved Terrain Scanner > --- WEAPON (2) ------- Grenade Launcher Katana > --- INVENTORY (8) ---- Ion Engine Improved Heat Sink Improved Terrain Scanner Improved Targeting Computer EM Pulse Gun Assault Rifle Light Assault Rifle Field Lobotomy Kit (5) Peak State ------------ > --- POWER ------------ Ion Engine > --- PROPULSION ------- Aluminum Leg Improved Aluminum Leg > --- UTILITY ---------- Small Storage Unit Improved Terrain Scanner > --- WEAPON ----------- Assault Rifle Katana > --- INVENTORY -------- Ion Engine Light Treads Improved Heat Sink Improved Terrain Scanner EM Pulse Gun Light Assault Rifle Grenade Launcher Field Lobotomy Kit [Rating: 14] Favorites ----------- Power Ion Engine Engine Ion Engine Propulsion Aluminum Leg Leg Aluminum Leg Utility Small Storage Unit Device Improved Heat Sink Storage Small Storage Unit Processor Transport Network Coupler Weapon Assault Rifle Energy Gun Small Laser Ballistic Gun Assault Rifle Launcher Grenade Launcher Slashing Weapon Katana Build | -11 -10 -10 -10 -9 ------- Run | Yrd Mat Min Exi Min Slots Evolved . | . . . . . Power . | . . . . . Propulsion . | . . . . . Utility . | . . . . . Weapon . | . . . . . Parts Attached 17 | . 7 1 . 9 Power 2 | . 1 1 . . Engine 2 | . 1 1 . . Core . | . . . . . Reactor . | . . . . . Propulsion 2 | . . . . 2 Treads . | . . . . . Leg 2 | . . . . 2 Wheel . | . . . . . Hover . | . . . . . Flight . | . . . . . Utility 4 | . 3 . . 1 Device 3 | . 2 . . 1 Storage . | . . . . . Processor 1 | . 1 . . . Hackware . | . . . . . Protection . | . . . . . Artifact . | . . . . . Weapon 9 | . 3 . . 6 Energy Gun . | . . . . . Energy Cannon . | . . . . . Ballistic Gun 4 | . 2 . . 2 Ballistic Cannon . | . . . . . Launcher 4 | . 1 . . 3 Special Weapon . | . . . . . Impact Weapon . | . . . . . Slashing Weapon 1 | . . . . 1 Piercing Weapon . | . . . . . Special Melee Weapon . | . . . . . Unidentified Prototypes . | . . . . . Parts Lost 1 | . . . . 1 Power . | . . . . . Propulsion 1 | . . . . 1 Utility . | . . . . . Weapon . | . . . . . Highest Loss Streak 1 | . . . . 1 To Critical Strikes . | . . . . . Average Slot Usage (%) 98 | . 96 100 100 99 Engine 14 | . 14 14 14 14 Leg 27 | . 28 28 28 27 Device 13 | . 10 14 14 14 Storage 14 | . 14 14 14 14 Energy Gun 3 | . 12 . . . Ballistic Gun 17 | . 15 28 28 12 Launcher 1 | . . . . 2 Slashing Weapon 5 | . . . . 13 Naked Turns . | . . . . . Heaviest Build 16 | 10 15 14 14 16 Greatest Support 23 | 20 20 20 20 23 Greatest Overweight (x) 1 | . . . . 1 Average Overweight (x) . | . . . . . Largest Inventory Capacity 8 | . 8 8 8 8 Average Capacity 8 | . 8 8 8 8 Most Carried 8 | . 8 8 8 8 Average Carried 7 | . 7 8 8 7 Final Capacity 8 | 8 8 8 8 8 Final Carried 8 | 6 8 8 8 8 Class Distribution -------------------- 59% | Mutant 40% | Scavenger-Assassin Dominant Class ---------------- Mutant | -10/Materials Mutant | -10/Mines Mutant | -10/Exiles Scavenger-Assassin | -9/Mines Resources | -11 -10 -10 -10 -9 ----------- Run | Yrd Mat Min Exi Min Matter Collected 528 | 200 97 50 . 181 Remotely . | . . . . . Salvage Created 735 | . 472 . . 263 Parts 54 | . 31 . . 23 Haulers Intercepted 1 | . 1 . . . Recyclers Shooed 1 | . 1 . . . Parts Field Recycled . | . . . . . Retrieved Matter . | . . . . . Parts Self-Destructed . | . . . . . Prevented . | . . . . . Kills | -11 -10 -10 -10 -9 ------- Run | Yrd Mat Min Exi Min Combat Hostiles Destroyed 18 | . 10 . . 8 Guns 8 | . 7 . . 1 AOE 10 | . 3 . . 7 Classes Destroyed 9 | . 6 . . 3 Worker 3 | . 1 . . 2 Builder 1 | . . . . 1 Tunneler 2 | . . . . 2 Hauler 1 | . 1 . . . Recycler 1 | . 1 . . . Watcher 1 | . 1 . . . Swarmer 6 | . 3 . . 3 Grunt 10 | . 7 . . 3 Duelist 2 | . . . . 2 Best Kill Streak 4 | . 4 . . 4 Combat Bots Only 3 | . 3 . . 3 Max Kills in Single Turn 3 | . 3 . . 1 Gunslinging . | . . . . . Exploded 2 | . 2 . . 1 Melee . | . . . . . Uniques/NPCs Destroyed . | . . . . . Combat | -11 -10 -10 -10 -9 -------- Run | Yrd Mat Min Exi Min Hostile Shots Fired 77 | . 50 . . 27 Missed 26 | . 18 . . 8 Damage Taken 653 | . 411 . . 242 Core 257 | . 176 . . 81 Absorbed by Shields . | . . . . . Core Remaining (%) 100 | 100 . . . . Volleys Fired 64 | . 46 2 . 16 Largest 2 | . 2 2 . 2 Hottest 60 | . 60 40 . 40 Shots Fired 113 | . 89 5 . 19 Gun 100 | . 87 5 . 8 Cannon . | . . . . . Launcher 13 | . 2 . . 11 Special . | . . . . . Kinetic 57 | . 44 5 . 8 Thermal 43 | . 43 . . . Explosive 13 | . 2 . . 11 Electromagnetic . | . . . . . Robot Hit Streak 15 | . 15 1 . 3 Robot Miss Streak 4 | . 4 . . 1 Penetration Max . | . . . . . Secondary Targets . | . . . . . Shots Hit Robots 73 | . 63 1 . 9 Core Hits 50 | . 30 . . 20 Critical Kills . | . . . . . Critical Parts Destroyed . | . . . . . Critical Strikes . | . . . . . Melee Attacks 3 | . . . . 3 Impact . | . . . . . Slashing 3 | . . . . 3 Piercing . | . . . . . Sneak Attacks 2 | . . . . 2 Combat Hostiles . | . . . . . Follow-up Attacks . | . . . . . Damage Inflicted 1655 | . 852 . . 803 Guns 678 | . 617 . . 61 Cannons . | . . . . . Explosions 813 | . 235 . . 578 Melee 164 | . . . . 164 Ramming . | . . . . . Kinetic 332 | . 271 . . 61 Thermal 346 | . 346 . . . Explosive 813 | . 235 . . 578 Electromagnetic . | . . . . . Impact . | . . . . . Slashing 164 | . . . . 164 Piercing . | . . . . . Highest Corruption 2 | . 2 2 2 2 Average Corruption 2 | . 2 2 2 2 Corruption Purged . | . . . . . Corruption Blocked . | . . . . . Effects 15 | . 2 6 3 4 Message Errors 4 | . . 2 1 1 Matter Fused 3 | . . . 2 1 Heat Flow Errors 1 | . . 1 . . Energy Discharges 2 | . . . . 2 Parts Rejected 1 | . 1 . . . Parts Fused 1 | . . 1 . . Data Loss (minor) 1 | . 1 . . . Data Loss (major) 1 | . . 1 . . Misfires 1 | . . 1 . . Overload Shots . | . . . . . Overflow Damage 32 | . 2 . . 30 Projectiles . | . . . . . Explosions 32 | . 2 . . 30 Melee . | . . . . . Knockbacks . | . . . . . Impact . | . . . . . Kinetic . | . . . . . Secondary . | . . . . . Self-Inflicted Damage 56 | . . . . 56 Shots 4 | . . . . 4 Rammed . | . . . . . Targets Rammed . | . . . . . Kicked . | . . . . . Crushed . | . . . . . Highest Temperature 228 | . 105 228 . 1 Average Temperature 47 | . 36 130 . 1 Received Heat Transfer 267 | . 225 . . 42 Siege Activations . | . . . . . Robots Corrupted . | . . . . . Combat Hostiles . | . . . . . Parts Fried . | . . . . . Impact Corruptions . | . . . . . Robots Melted . | . . . . . Combat Hostiles . | . . . . . Parts Melted 1 | . 1 . . . Heat Transferred 775 | . 775 . . . Parts Sabotaged . | . . . . . Parts Stolen . | . . . . . Parts Stripped . | . . . . . Power Chain Reactions . | . . . . . Alert | -11 -10 -10 -10 -9 ------- Run | Yrd Mat Min Exi Min Peak Influence 336 | . 336 130 . 201 Initial 130 | . . 130 . . Average 98 | . 144 130 . 57 Maximum Alert Level 1 | . 1 . . 1 Low Security (%) 87 | . 77 100 . 89 Level 1 12 | . 22 . . 10 Level 2 . | . . . . . Level 3 . | . . . . . Level 4 . | . . . . . Level 5 . | . . . . . High Security . | . . . . . Max Security . | . . . . . Squads Dispatched 1 | . 1 . . . Investigation 1 | . 1 . . . Extermination . | . . . . . Reinforcement . | . . . . . Assault . | . . . . . Garrison . | . . . . . Intercept . | . . . . . Searches Triggered . | . . . . . Construction Impeded . | . . . . . Haulers Reinforced . | . . . . . Active Scanning Responses . | . . . . . Cargo Convoy Interrupts . | . . . . . Stealth | -11 -10 -10 -10 -9 --------- Run | Yrd Mat Min Exi Min Distress Signals . | . . . . . Communications Jammed . | . . . . . Distress Signals . | . . . . . Times Spotted 22 | . 14 . . 8 Peak Tracking Total 4 | . 4 . . 4 Tactical Retreats 1 | . 1 . . . Traps | -11 -10 -10 -10 -9 ------- Run | Yrd Mat Min Exi Min Traps Triggered 2 | . 2 . . . Indirectly . | . . . . . Trap Hack Attempts . | . . . . . Triggered . | . . . . . Disarmed . | . . . . . Reprogrammed . | . . . . . Reused . | . . . . . Traps Extracted . | . . . . . Installed . | . . . . . Triggered . | . . . . . Machines | -11 -10 -10 -10 -9 ---------- Run | Yrd Mat Min Exi Min Machines Disabled 3 | . . . . 3 Max in Single Turn 1 | . . . . 1 Machines Repaired . | . . . . . Machines Dismantled . | . . . . . Machines Sabotaged . | . . . . . Overloaded Fab Kills . | . . . . . Hacking | -11 -10 -10 -10 -9 --------- Run | Yrd Mat Min Exi Min Machines Accessed 3 | . 2 . 1 . Terminals 2 | . 2 . . . Fabricators . | . . . . . Repair Stations . | . . . . . Recycling Units . | . . . . . Scanalyzers . | . . . . . Garrison Access . | . . . . . Total Hacks 5 | . 4 . 1 . Successful 2 | . 1 . 1 . Failed 3 | . 3 . . . Catastrophic 2 | . 2 . . . Database Lockouts . | . . . . . Manual 3 | . 2 . 1 . Terminals 4 | . 4 . . . Fabricators . | . . . . . Repair Stations . | . . . . . Recycling Units . | . . . . . Scanalyzers . | . . . . . Garrison Access . | . . . . . Terminal Hacks 1 | . . . 1 . Derelict Proto ID Bank 1 | . . . 1 . Fabricator Hacks . | . . . . . Repair Station Hacks . | . . . . . Recycling Unit Hacks . | . . . . . Scanalyzer . | . . . . . Garrison Access Hacks . | . . . . . Unauthorized Hacks 1 | . 1 . . . Terminals 1 | . 1 . . . Botnet 1 | . 1 . . . Fabricators . | . . . . . Repair Stations . | . . . . . Recycling Units . | . . . . . Scanalyzers . | . . . . . Garrison Access . | . . . . . Data Cores Recovered . | . . . . . Used . | . . . . . Hacking Detections 2 | . 2 . . . Full Trace Events . | . . . . . Feedback Events . | . . . . . Feedback Blocked . | . . . . . Robot Schematics Acquired . | . . . . . Robots Built . | . . . . . Authchips . | . . . . . Time . | . . . . . Total Robot Build Rating . | . . . . . Part Schematics Acquired . | . . . . . Parts Built . | . . . . . Authchips . | . . . . . Time . | . . . . . Total Part Build Rating . | . . . . . Parts Repaired . | . . . . . Time . | . . . . . Parts Recycled . | . . . . . Recycled Matter . | . . . . . Retrieved Matter . | . . . . . Retrieved Components . | . . . . . Parts Scanalyzed . | . . . . . Part Schematics Acquired . | . . . . . Parts Damaged . | . . . . . Bothacking | -11 -10 -10 -10 -9 ------------ Run | Yrd Mat Min Exi Min Used RIF Installer . | . . . . . Robots Hacked . | . . . . . Non-combat . | . . . . . Combat . | . . . . . Robot Hacks Applied . | . . . . . Relay Couplers Released . | . . . . . Fabnet Peak Effective % . | . . . . . Robots Rewired . | . . . . . Allies Hacked . | . . . . . Hacks Repelled . | . . . . . Allies | -11 -10 -10 -10 -9 -------- Run | Yrd Mat Min Exi Min Total Allies . | . . . . . Largest Group . | . . . . . Highest-Rated Group . | . . . . . Highest-Rated Ally . | . . . . . Total Orders . | . . . . . Ally Attacks . | . . . . . Total Damage . | . . . . . Kills . | . . . . . Allies Corrupted . | . . . . . Allies Melted . | . . . . . Intel | -11 -10 -10 -10 -9 ------- Run | Yrd Mat Min Exi Min Robot Analysis Total . | . . . . . Derelict Logs Recovered 2 | . . . . 2 Drone Launches . | . . . . . Drone Recoveries . | . . . . . Exploration | -11 -10 -10 -10 -9 ------------- Run | Yrd Mat Min Exi Min Turns Passed 1453 | . 392 202 262 597 Spaces Moved 985 | 1 174 163 218 429 Core . | . . . . . Treads . | . . . . . Legs 985 | 1 174 163 218 429 Wheels . | . . . . . Hover . | . . . . . Flight . | . . . . . Fastest Speed 120 | 120 120 120 120 120 Average Speed 120 | 120 120 120 120 120 Slowest Speed 190 | 120 120 120 120 190 Overloaded Moves . | . . . . . Propulsion Burnouts . | . . . . . Robots Hopped . | . . . . . Cave-ins Triggered . | . . . . . Exploration Rate (%) 42 | 1 38 40 60 72 Regions Visited 4 Branch Regions 3 Pre-discovered Areas 1 | . . . . 1 Known Exits Taken . | . . . . . Unknown Exits Taken 4 | 1 1 1 1 . Scrap Searched 4 | . . 2 . 2 Spaces Dug . | . . . . . Terrain Destroyed 78 | . 7 . . 71 Melee . | . . . . . Projectile . | . . . . . AOE 78 | . 7 . . 71 Terrain Rammed . | . . . . . Walls Destroyed . | . . . . . Machines Disabled . | . . . . . Actions | -11 -10 -10 -10 -9 --------- Run | Yrd Mat Min Exi Min Total 1149 | . 276 166 219 488 Wait 61 | . 39 . . 22 Move 981 | . 173 162 217 429 Hop . | . . . . . Pick Up 8 | . 5 . 1 2 Fast Attach 7 | . 4 . . 3 Attach . | . . . . . Detach 2 | . . . . 2 Swap 10 | . 3 1 . 6 Drop 13 | . 6 1 1 5 Fire 64 | . 46 2 . 16 Melee 3 | . . . . 3 Ram . | . . . . . Kick . | . . . . . Crush . | . . . . . Escape Stasis . | . . . . . Rewire . | . . . . . Trap . | . . . . . Miscellaneous . | . . . . . Route ------- -11/Scrapyard -10/Materials -10/Mines -10/Exiles -9/Mines (discovered 1 exit: [*Mat]) History --------- Turn | Location | Event 1 | -11/Scrapyard | Discovered new exit (range 0) 1 | -11/Scrapyard | Entered Materials 269 | -10/Materials | Core integrity fell below 50% 305 | -10/Materials | Build established: Mutant 351 | -10/Materials | Discovered new exit (range 7) 393 | -10/Materials | Entered Mines 514 | -10/Mines | Found a hidden stash of uninstalled traps 583 | -10/Mines | Deemed a non-threat by the Exiles lab entrance 583 | -10/Mines | Discovered new exit (range 5) 595 | -10/Mines | Entered Exiles 625 | -10/Exiles | Met 8R-AWN 646 | -10/Exiles | Met EX-HEX 679 | -10/Exiles | Met EX-BIN 694 | -10/Exiles | Aligned with FarCom system 695 | -10/Exiles | Given EX-Vault access code 727 | -10/Exiles | Opened EX-Vault 735 | -10/Exiles | Found Field Lobotomy Kit 759 | -10/Exiles | Warned to stay clear of 0b10 Research branches 795 | -10/Exiles | Met EX-DEC 845 | -10/Exiles | Discovered new exit (range 12) 857 | -10/Exiles | Left Exiles lab with Field Lobotomy Kit 857 | -10/Exiles | Entered Mines 860 | -9/Mines | Core integrity fell below 20% 947 | -9/Mines | Discovered new exit (range 7) 1032 | -9/Mines | Learned location of Zion (-6) 1159 | -9/Mines | Build established: Scavenger-Assassin 1288 | -9/Mines | Learned Materials emergency access door positions 1454 | -9/Mines | Destroyed by S-10 Pest with Light Assault Rifle Last Messages --------------- 01339_ Acquired 19 matter. 01347_ Searching scrap... 01347_ Found EM Shotgun. 01347_ Found Lgt. EM Pulse Cannon. 01347_ Found Imp. Targeting Computer. 01347_ Found 32 Matter. 01348_ Acquired 32 matter. 01350_ Dropped Lgt. Treads. 01350_ Acquired Imp. Targeting Computer. 01352_ U-05 Engineer builds a Wall. 01361_ System corrupted: Energy discharge (-82). 01408_ U-05 Engineer lays Concrete. 01411_ T-07 Excavator is excavating. 01412_ U-05 Engineer lays Concrete. 01443_ S-10 Pest destroyed. 01449_ K-01 Serf destroyed. 01451_ S-10 Pest destroyed. 01453_ The unstable cave ceiling collapses. 01453_ S-10 Pest destroyed. 01453_ Destroyed Flight Unit. Map ----- +----------------------------------------------------+ | #???????????????????????????????????????????? | | ????????????????????????????????????????????? | | ?###########???????#??#?????????????????????? | | ?# #????????????????????????#???????? | | ?# #??#??????#????????#######??###??? | | ## #????????#????????## ###??# ##?# | | ?# #?????######?????## #???# #?? | | ?###### ###?????# #?#?## #??## #?? | | ??#???# #???????# #?## ##??# #?? | | ??????# #???????# ## #####???# ##? | | ??????# ##???????# ##??#???## #? | | ?##??## #???????## """ #????#### #? | | ??#?## #????????# """ ##???## ##? | | #?### ##????#??## """ ###### """ ##?? | | ### #??#??????## """ #??? | | ?# #?????#? ??### """ #??? | | ## ###?## ???????## ###### #??? | | ### ##????# #????# ##??#?## #####??? | | ?## #?????# ### ##??????# ##??????? | | ?# ##???##?# #???##?## #???#???? | | ?# #????????# #### =#???????# #???????? | | ## #?#????#?##??????# #??????? #???????? | | # ##???#?????##????# ]#??????? ???????? | | ##??????????#######[ ###????? ??????? | | ##???#??????# ##???? ???????? | | ###????????#!##### @ #???####???????? | | ##???????# #???## ##???#??????????? | | #???????# #??# ##??????????????? | | ##?###### #??# #????#??????????? | | # ### #??# #???#???????????? | | ## #####??# #???????????????? | | ?#### #?????? #???????????????? | | ????## ##?????? s% ##???????????????? | | ?#??## ##?????# ##???#????????????? | | ????## ##????#?? ##??????????????????? | | ???## #??????? ????????????????????? | | ???# #?????? ?????#??????????????? | | ???# #????? ????????????????????? | | ?#?# #????? ????????????????????? | | ???# ##???# ?????????????????????? | | ?#?# ##????# ??????????????????????? | | ??## ##????? = ??????????????????????? | | ?## ##???????? % ???????????#??????????? | | ## ##???????????????????????????????????? | | # ##???????? ?? ????????????????????????? | | ##?????????????????????????????????????? | | ##?????????????????????????????????????? | | #### #?????????????????????????????? | | #?????????????????????????????? | | #?????????????????????????????? | +----------------------------------------------------+ Best States ------------- Heat Dissipation 39 Energy Generation 10 Energy Capacity 250 Matter Stores 300 Matter Capacity 300 Sight Range 16 Terrain Scan Range 16 Terrain Scan Density 10 Evasion (%) 55 Item Schematics ----------------- None Robot Schematics ------------------ None Fabricated ------------ Nothing Alien Tech Used ----------------- None Achievements -------------- Dramatic Entrance Challenges ------------ None Game ------ Seed ImpulseRainbowWell Manual? 0 Play Time 00:12:17 Cumulative 74.6 hours Start 2024.07.01 @ 11:04:52 End 2024.07.01 @ 11:39:20 Sessions 1 Manual Loads 0 Difficulty Rogue Special Mode None Game No. 86 Rogue 86 Adventurer 0 Explorer 0 Win Type - Total 0 Types 0/0/0/0/0/0/0/0/0 Lore% 40 Gallery% 55 Achievement% 51 Wizard Run 0 Options --------- Layout 1 ASCII 0 Keyboard 0 Movement Mouse Keybinds 0 Fullscreen 1 Font 24/Smallcaps Map View 50x35 Zoom Use 0% Tactical HUD 1 Map Filters NONE Filters NONE Steam 1 RUN: b24ce91e-a3ee-41d6-b106-71b07d5d0b9c